Workbook

Sheet CD
B1: lat | E1: Long | H1: Co. | I1: Dist.
A2: Dep. | B2: 35 | C2: 10.42 | D2: N | E2: 179 | F2: 48.11 | G2: W | H2: =cal!E19 -> 181.9939495 | I2: =cal!F19 -> 1931.589564
A3: Arr. | B3: 3 | C3: 0 | D3: n | E3: 179 | F3: 0 | G3: e
A4: Pass. | B4: 20 | C4: 34.64 | D4: S | E4: =IF(cal!C51<0,cal!C50*-1,cal!C50) -> 178 | F4: =IF(cal!C51<0,cal!D50*-1,cal!D50) -> 10.12 | G4: =IF(cal!C51<0,"W","E") -> E | H4: Fm Dep. | I4: =cal!F50 -> 3347.086638

Sheet DR
A1: Time | B1: Fm | C1: 2006-08-30 | F1: 02:27:00 | G1: =IF(AND(C3="",E3=""),"*","") ->  | H1: ← どちらかを入力 ←
B2: To | C2: 2006-08-31 | F2: 19:00:00
B3: For | C3: 1 | D3: h | F3: min | G3: =IF(OR(C3<>"",E3<>""),"*","") -> *
A4: Position | B4: 3 | C4: 0 | D4: n | E4: 179 | F4: 0 | G4: e
A5: Co. | B5: 350 | D5: Speed | F5: 40
A6: DR Positioin | B6: =IF(cal!J3<0,cal!J3*-1,cal!J3) -> 35 | C6: =IF(cal!K3<0,cal!K3*-1,cal!K3) -> 10.42 | D6: =IF(cal!J3<0,"S","N") -> N | E6: =IF(cal!L3<0,cal!L3*-1,cal!L3) -> 179 | F6: =IF(cal!M3<0,cal!M3*-1,cal!M3) -> 48.11 | G6: =IF(cal!L3<0,"W","E") -> W

Sheet Tide
A1: 標準港 | B1: Hight | C1: 37 | D1: cm
B2: Z0 | C2: 1.38 | D2: m
A3: 調査港 | B3: Ratio | C3: 1.11
B4: Z0 | C4: 1.3 | D4: m
B5: Hight | C5: =(C1/100-C2)*C3+C4 -> 0.1789 | D5: m

Sheet ETA
A1: ETA | B1: 2022-11-01 | C1: 02:00:00 | E1: UTC | F1: 8 | G1: h | I1: =(B1+C1)-F1/24 -> 2022-10-31T18:00:00
A2: S/B hrs & dist | B2: 01:00:00 | E2: 12 | F2: miles | I2: =I1-B2 -> 2022-10-31T17:00:00
A3: DATE | B3: 2022-10-23 | C3: 06:00:00 | E3: UTC | F3: 9 | G3: h | I3: =(B3+C3)-F3/24 -> 2022-10-22T21:00:00
A4: Position | B4: 35 | C4: 10.42 | D4: N | E4: 179 | F4: 48.11 | G4: W
A5: Next Way Point | B5: 32 | C5: 0.5 | D5: N | E5: 132 | F5: 17 | G5: E
B6: Dist. to P.S. | E6: 120
B7: Co. to W.P. | E7: =cal!E35 -> 265.4855238
B8: Dist. to W.P. | E8: =cal!F35 -> 2412.878357
A9: Dist. to P.S. | B9: =E6+E8 -> 2532.878357
A10: REM. to S/B | B10: hrs | E10: =I10 -> 8-20-0 | I10: =CONCATENATE(INT(I2-I3),"-",HOUR(I2-I3),"-",MINUTE(I2-I3)) -> 8-20-0
B11: dist. | E11: =B9-E2 -> 2520.878357 | I11: =(E6+E8)-E2 -> 2520.878357
A13: REQ. SPEED | B13: =I13 -> 11.89093565 | I13: =I11/I14 -> 11.89093565
A14: ETA | B14: Speed > | D14: 18 | F14: kt's | I14: =(I2-I3)*24 -> 212
A15: =D14 -> 18 | B15: =I15 -> 2022-10-29T02:02:55.671 | I15: =($I$11/A15)/24+$I$3+$F$1/24+$B$2 -> 2022-10-29T02:02:55.671
A16: =A15+0.25 -> 18.25 | B16: =I16 -> 2022-10-29T00:07:49.155 | I16: 2022-10-29T00:07:49.155
A17: =A16+0.25 -> 18.5 | B17: 2022-10-28T22:15:49.302 | I17: 2022-10-28T22:15:49.302
A18: 18.75 | B18: 2022-10-28T20:26:48.645 | I18: 2022-10-28T20:26:48.645
A19: 19 | B19: 2022-10-28T18:40:40.110 | I19: 2022-10-28T18:40:40.110
A20: 19.25 | B20: 2022-10-28T16:57:16.991 | I20: 2022-10-28T16:57:16.991
A21: 19.5 | B21: 2022-10-28T15:16:32.927 | I21: 2022-10-28T15:16:32.927
A22: 19.75 | B22: 2022-10-28T13:38:21.878 | I22: 2022-10-28T13:38:21.878
A23: 20 | B23: 2022-10-28T12:02:38.104 | I23: 2022-10-28T12:02:38.104
A24: 20.25 | B24: 2022-10-28T10:29:16.152 | I24: 2022-10-28T10:29:16.152
A25: 20.5 | B25: 2022-10-28T08:58:10.833 | I25: 2022-10-28T08:58:10.833
A26: 20.75 | B26: 2022-10-28T07:29:17.209 | I26: 2022-10-28T07:29:17.209

Sheet WIND
A1: Rela. Wind | B1: Dir | C1: 45 | D1: deg | E1: =IF(G1<D22,1,IF(G1<D23,2,IF(G1<D24,3,4))) -> 2 | G1: =ABS(SIN(RADIANS(C1/2))) -> 0.3826834324
B2: Speed | C2: 15 | D2: kts | E2: =C2/3600*1852 -> 7.716666667
A3: Ship | B3: Co | C3: 90 | D3: deg
B4: Speed | C4: 13 | D4: kts
A5: True Wind | B5: Dir | C5: =B19 -> 192.7159219 | D5: deg | E5: =IF(G5<H5,1,IF(G5<H6,2,IF(G5<H7,3,4))) -> 4 | G5: =ABS(SIN(RADIANS(B18/2))) -> 0.7810625093
C6: =VLOOKUP(G6,A22:B38,2,FALSE) -> SSW | G6: =ROUND(C5/22.5,0) -> 9
B7: Speed | C7: =B17 -> 10.87328632 | D7: kts | E7: =C7/3600*1852 -> 5.593701739
B8: BF | C8: =IF(B17<=16,C22,IF(B17<=40,C23,C24)) -> 4
A10: wind | B10: =C2 -> 15
A11: deg | B11: =IF(C1=0,C1+360,C1) -> 45 | C11: =RADIANS(B11) -> 0.7853981634
A12: Speed | B12: =C4 -> 13
A13: Co | B13: =IF(C3=0,C3+360,C3) -> 90
A14: a | B14: =B10*SIN(C11) -> 10.60660172
A15: b | B15: =B10*COS(C11) -> 10.60660172
A16: c | B16: =B15-B12 -> -2.393398282
A17: True | B17: =B16/COS(C18) -> 10.87328632
A18: deg | B18: =IF(C18<0,DEGREES(C18)+360,DEGREES(C18)) -> 102.7159219 | C18: =ATAN2(B16,B14) -> 1.792731031
B19: =IF(C19>=360,C19-360,C19) -> 192.7159219 | C19: =B13+B18 -> 192.7159219
A21: dir1 | B21: dir2 | C21: BF | D21: Rel
A22: 0 | B22: NORTH | C22: =IF(B17<1,0,IF(B17<=3,1,IF(B17<=6,2,IF(B17<=10,3,4)))) -> 4 | D22: =SIN(RADIANS(11)) -> 0.1908089954
A23: 1 | B23: NNE | C23: =IF(B17<=21,5,IF(B17<=27,6,IF(B17<=33,7,8))) -> 5 | D23: =SIN(RADIANS(34)) -> 0.5591929035
A24: 2 | B24: NE | C24: =IF(B17<=47,9,IF(B17<=55,10,IF(B17<=63,11,12))) -> 9 | D24: =SIN(RADIANS(56)) -> 0.8290375726
A25: 3 | B25: ENE
A26: 4 | B26: EAST
A27: 5 | B27: ESE
A28: 6 | B28: SE
A29: 7 | B29: SSE
A30: 8 | B30: SOUTH
A31: 9 | B31: SSW
A32: 10 | B32: SW
A33: 11 | B33: WSW
A34: 12 | B34: WEST
A35: 13 | B35: WNW
A36: 14 | B36: NW
A37: 15 | B37: NNW
A38: 16 | B38: NORTH

Sheet Rise&Set
A1: Diff. | B1: UTC | D1: 8 | E1: h | H1: Time | I1: Dir.
A2: lat | B2: 8 | D2: 45.8 | E2: s | G2: Rise | H2: =E19 -> 06:36:56.747 | I2: =F19 -> 67.63337269
A3: Long | B3: 115 | D3: 43.3 | E3: e | G3: Set | H3: =E20 -> 18:08:14.853 | I3: =F20 -> 292.3666273
A4: E | B4: 11:54:31
B5: p.p | D5: 00:00:00 | G5: <常用日出没>
A6: d | B6: n | C6: 22 | D6: 5.5 | G6: 眼高 | H6: Rise | I6: =E21 -> 06:32:59.540
B7: p.p | D7: 0 | G7: 0 | H7: Set | I7: =E22 -> 18:12:12.060
A9: E | C9: =(B4+D5)*24 -> 11.90861111
A10: d | C10: =C6+(D6+D7)/60 -> 22.09166667 | D10: =IF(OR(B6="S",B6="s"),C10*-1,C10) -> 22.09166667
A11: l | C11: =IF(OR(E2="s",E2="S"), (B2+(D2/60))*-1,B2+(D2/60)) -> -8.763333333
A12: L | C12: =IF(OR(E3="w",E3="W"),(B3+(D3/60))*-1,B3+(D3/60)) -> 115.7216667
A13: L-ZONE | C13: =C12/15-D1 -> -0.2852222222
A14: 眼高 | C14: =G7 -> 0 | D14: =1.776*SQRT(C14) -> 0
A15: 大気差 | C15: 54.2 | D15: ⊿H | E15: =((C15+D14)/60)/(COS(RADIANS(C11))*COS(RADIANS(D10))*SIN(C18)) -> 0.988359777 | F15: =E15/15 -> 0.0658906518
A16: MAX | C16: =IF(C9>=0, 24-C9, ABS(C9)) -> 12.09138889 | E16: =C16/24 -> 12:05:29
A17: MAX ST | C17: =C16-C13 -> 12.37661111 | E17: =C17/24 -> 12:22:35.800
A18: H.A. | C18: =ACOS(-TAN(RADIANS(C11))*TAN(RADIANS(D10))) -> 1.508186523 | D18: =DEGREES(C18)/15 -> 5.760848164
A19: SUN RISE | C19: =C16-D18 -> 6.330540725 | D19: =C19-C13 -> 6.615762947 | E19: =D19/24 -> 06:36:56.747 | F19: =IF(AND(I19>=0,H22<=90),H22,H21) -> 67.63337269 | G19: TRUE | H19: =-COS(RADIANS(D10))*SIN(-C18) -> 0.9247678363 | I19: =SIN(RADIANS(D10))/COS(RADIANS(C11)) -> 0.3805317977
A20: SUN SET | C20: =C16+D18 -> 17.85223705 | D20: =C20-C13 -> 18.13745928 | E20: =D20/24 -> 18:08:14.853 | F20: =360-F19 -> 292.3666273 | G20: TRUE | H20: =-COS(RADIANS(D10))*SIN(C18) -> -0.9247678363
A21: SUN RISE | C21: =D19-F15 -> 6.549872295 | E21: =C21/24 -> 06:32:59.540 | G21: 常用 | H21: =IF(H22<0,-180-H22,180-H22) -> 112.3666273
A22: SUN SET | C22: =D20+F15 -> 18.20334993 | E22: =C22/24 -> 18:12:12.060 | G22: 常用 | H22: =DEGREES(ASIN(H19)) -> 67.63337269

Sheet cal (hidden)
A2: lat | C2: LONG | E2: CO | F2: SPEED | G2: HOUR | I2: DIST | J2: lat | L2: LONG
A3: 35 | B3: =IF(OR(DR!D4="S",DR!D4="s"),DR!C4*-1,DR!C4) -> 0 | C3: =IF(OR(DR!G4="W",DR!G4="w"),DR!E4*-1,DR!E4) -> 179 | D3: =IF(OR(DR!G4="W",DR!G4="w"),DR!F4*-1,DR!F4) -> 0 | E3: 80 | F3: 60 | G3: =IF(AND(DR!C3="",DR!E3=""),"",DR!C3) -> 1 | H3: =IF(AND(DR!C3="",DR!E3=""),"",DR!E3) -> 0 | I3: =IF(OR(G3<>"",H3<>""),F3*(G3+H3/60),F3*(G4+H4/60)) -> 60 | J3: =ROUNDDOWN(B9,0) -> 35 | K3: =ROUND((B9-J3)*60,2) -> 10.42 | L3: =ROUNDDOWN(B15,0) -> -179 | M3: =ROUND((B15-L3)*60,2) -> -48.11
A4: =A3+B3/60 -> 35 | C4: =C3+D3/60 -> 179 | G4: =DAY(B6-B5)*24+HOUR(B6-B5) -> 40 | H4: =MINUTE(B6-B5) -> 33
A5: Fm | B5: =DR!C1+DR!F1 -> 2006-08-30T02:27:00
A6: To | B6: =DR!C2+DR!F2 -> 2006-08-31T19:00:00
A8: dlat | B8: =I3*COS(RADIANS(E3))/60 -> 0.1736481777
A9: lat2 | B9: =A4+B8 -> 35.17364818
A11: mp2 | B11: =7915.7045*LOG10(TAN(RADIANS(45+B9*0.5)))-22.9448*SIN(RADIANS(B9))-0.051*(SIN(RADIANS(B9)))^3 -> 2243.792256
A12: mp1 | B12: =7915.7045*LOG10(TAN(RADIANS(45+A4*0.5)))-22.9448*SIN(RADIANS(A4))-0.051*(SIN(RADIANS(A4)))^3 -> 2231.116633
A13: dmp | B13: =B11-B12 -> 12.67562324
A14: dlong | B14: =TAN(RADIANS(E3))*B13/60 -> 1.198117194 | C14: =I3/COS(RADIANS(A4))/60 -> 1.220774589
A15: long2 | B15: =IF(C15>180,C15-360,IF(C15<-180,C15+360,C15)) -> -179.8018828 | C15: =IF(ABS(B13)<0.0001,IF(COS(RADIANS(E3))>0,C4+C14,C4-C14),C4+B14) -> 180.1981172
A18: lat | C18: LONG | E18: Co. | F18: Dist.
A19: =IF(OR(CD!D2="S",CD!D2="s"),CD!B2*-1,CD!B2) -> 35 | B19: =IF(OR(CD!D2="S",CD!D2="s"),CD!C2*-1,CD!C2) -> 10.42 | C19: =IF(OR(CD!G2="W",CD!G2="w"),CD!E2*-1,CD!E2) -> -179 | D19: =IF(OR(CD!G2="W",CD!G2="w"),CD!F2*-1,CD!F2) -> -48.11 | E19: =IF(DEGREES(E20)<0,DEGREES(E20)+360,DEGREES(E20)) -> 181.9939495 | F19: =IF(ABS(B26)<=0.0001,F20,B29/COS(RADIANS(E19))*60) -> 1931.589564
A20: =A19+B19/60 -> 35.17366667 | C20: =C19+D19/60 -> -179.8018333 | E20: =ATAN2(B26,B27*60) -> -3.106791669 | F20: =ABS(B27*COS(RADIANS(A20))*60) -> 58.76358637
A21: =IF(OR(CD!D3="S",CD!D3="s"),CD!B3*-1,CD!B3) -> 3 | B21: =IF(OR(CD!D3="S",CD!D3="s"),CD!C3*-1,CD!C3) -> 0 | C21: =IF(OR(CD!G3="W",CD!G3="w"),CD!E3*-1,CD!E3) -> 179 | D21: =IF(OR(CD!G3="W",CD!G3="w"),CD!F3*-1,CD!F3) -> 0
A22: =A21+B21/60 -> 3 | C22: =C21+D21/60 -> 179
A24: mp2 | B24: =7915.7045*LOG10(TAN(RADIANS(45+A22*0.5)))-22.9448*SIN(RADIANS(A22))-0.051*(SIN(RADIANS(A22)))^3 -> 178.8814585
A25: mp1 | B25: =7915.7045*LOG10(TAN(RADIANS(45+A20*0.5)))-22.9448*SIN(RADIANS(A20))-0.051*(SIN(RADIANS(A20)))^3 -> 2243.793607
A26: dmp | B26: =B24-B25 -> -2064.912148
A27: Dlong | B27: =HLOOKUP(MIN(C27:E27),C27:E28,2,FALSE) -> -1.198166667 | C27: =ABS(C28) -> 358.8018333 | D27: =ABS(D28) -> 718.8018333 | E27: =ABS(E28) -> 1.198166667
C28: =C22-C20 -> 358.8018333 | D28: =(180-C20)+(180+C22) -> 718.8018333 | E28: =((180+C20)+(180-C22))*-1 -> -1.198166667
A29: dlat | B29: =A22-A20 -> -32.17366667
A34: lat | C34: LONG | E34: Co. | F34: Dist.
A35: =IF(OR(ETA!D4="S",ETA!D4="s"),ETA!B4*-1,ETA!B4) -> 35 | B35: =IF(OR(ETA!D4="S",ETA!D4="s"),ETA!C4*-1,ETA!C4) -> 10.42 | C35: =IF(OR(ETA!G4="W",ETA!G4="w"),ETA!E4*-1,ETA!E4) -> -179 | D35: =IF(OR(ETA!G4="W",ETA!G4="w"),ETA!F4*-1,ETA!F4) -> -48.11 | E35: =IF(DEGREES(E36)<0,DEGREES(E36)+360,DEGREES(E36)) -> 265.4855238 | F35: =IF(ABS(B42)<=0.0001,F36,B45/COS(RADIANS(E35))*60) -> 2412.878357
A36: =A35+B35/60 -> 35.17366667 | C36: =C35+D35/60 -> -179.8018333 | E36: =ATAN2(B42,B43*60) -> -1.6495888 | F36: =ABS(B43*COS(RADIANS(A36))*60) -> 2349.963094
A37: =IF(OR(ETA!D5="S",ETA!D5="s"),ETA!B5*-1,ETA!B5) -> 32 | B37: =IF(OR(ETA!D5="S",ETA!D5="s"),ETA!C5*-1,ETA!C5) -> 0.5 | C37: =IF(OR(ETA!G5="W",ETA!G5="w"),ETA!E5*-1,ETA!E5) -> 132 | D37: =IF(OR(ETA!G5="W",ETA!G5="w"),ETA!F5*-1,ETA!F5) -> 17
A38: =A37+B37/60 -> 32.00833333 | C38: =C37+D37/60 -> 132.2833333
A40: mp2 | B40: =7915.7045*LOG10(TAN(RADIANS(45+A38*0.5)))-22.9448*SIN(RADIANS(A38))-0.051*(SIN(RADIANS(A38)))^3 -> 2016.803981
A41: mp1 | B41: =7915.7045*LOG10(TAN(RADIANS(45+A36*0.5)))-22.9448*SIN(RADIANS(A36))-0.051*(SIN(RADIANS(A36)))^3 -> 2243.793607
A42: dmp | B42: =B40-B41 -> -226.9896255
A43: Dlong | B43: =HLOOKUP(MIN(C43:E43),C43:E44,2,FALSE) -> -47.91483333 | C43: =ABS(C44) -> 312.0851667 | D43: =ABS(D44) -> 672.0851667 | E43: =ABS(E44) -> 47.91483333
C44: =C38-C36 -> 312.0851667 | D44: =(180-C36)+(180+C38) -> 672.0851667 | E44: =((180+C36)+(180-C38))*-1 -> -47.91483333
A45: dlat | B45: =A38-A36 -> -3.165333333
A49: lat | C49: LONG | E49: CO | F49: Dist.
A50: =IF(OR(CD!D4="S",CD!D4="s"),CD!B4*-1,CD!B4) -> -20 | B50: =IF(OR(CD!D4="S",CD!D4="s"),CD!C4*-1,CD!C4) -> -34.64 | C50: =IF(B59="N/A","-",ROUNDDOWN(B59,0)) -> 178 | D50: =IF(B59="N/A","-",ROUND((B59-C50)*60,2)) -> 10.12 | E50: =E19 -> 181.9939495 | F50: =IF(ABS(B57)<0.0001,F51,(B60/COS(RADIANS(E50)))*60) -> 3347.086638
A51: =A50+B50/60 -> -20.57733333 | F51: =ABS(B58*COS(RADIANS(A51))*60) -> 114.0021247
A55: mp2 | B55: =7915.7*LOG10(TAN(RADIANS(45+A51*0.5)))-23.1*SIN(RADIANS(A51)) -> -1253.950862
A56: mp1 | B56: =7915.7*LOG10(TAN(RADIANS(45+A20*0.5)))-23.1*SIN(RADIANS(A20)) -> 2243.712669
A57: dmp | B57: =B55-B56 -> -3497.663531
A58: Dlong | B58: =(B57*TAN(RADIANS(E50)))/60 -> -2.029521623
A59: L2 | B59: =IF(ABS(B57)<0.0001,"N/A",IF(C59>180,C59-360,IF(C59<-180,C59+360,C59))) -> 178.168645 | C59: =C20+B58 -> -181.831355
A60: dlat | B60: =A51-A20 -> -55.751
